bitfinex/quotes_SOLUSD_20250410
["timestamp","ask_amount","ask_price","bid_price","bid_amount"]
[1744300935817,51.66871695,109.13,109.11,90.9646]
[1744300936011,51.66871695,109.13,109.1,9.1654]
[1744300936312,51.66871695,109.11,109.08,9.1675]
[1744300936491,32.06,109.17,109.08,60.83621695]
[1744300936806,9.163,109.14,109.08,18.64964886]
[1744300937211,28.7796,109.18,109.11,51.66871695]
[1744300937513,51.66871695,109.14,109.1,100.44964886]
[1744300937714,51.66871695,109.15,109.1,100.44964886]
[1744300938089,51.66871695,109.14,109.1,100.44964886]
[1744300938399,51.6775,109.18,109.1,152.11836581]
[1744300938589,51.66871695,109.15,109.1,100.44964886]
[1744300938800,9.1606,109.17,109.11,9.165]
[1744300939509,51.66871695,109.16,109.12,18.64964886]
[1744300939707,28.7794,109.18,109.12,18.64964886]
[1744300939708,51.66871695,109.14,109.12,18.64964886]
[1744300939914,28.7794,109.18,109.12,18.64964886]
[1744300940206,71.28871695,109.18,109.14,18.64964886]
[1744300940791,19.62,109.18,109.14,79.48046581]
[1744300941187,51.66871695,109.19,109.14,79.48046581]
[1744300941387,366.04871695,109.2,109.15,51.66871695]
[1744300941685,314.38,109.2,109.16,70.31836581]
[1744300941901,366.04871695,109.2,109.16,70.31836581]
[1744300942184,20.95451876,109.23,109.19,18.64964886]
[1744300942381,72.62323571,109.23,109.19,51.66871695]
[1744300942610,51.66871695,109.22,109.17,18.933972]
[1744300942813,1.43151876,109.22,109.2,9.1575]
[1744300943000,1.43151876,109.22,109.16,81.8]
[1744300943191,51.66871695,109.19,109.17,18.64964886]
[1744300943505,19.523,109.23,109.17,79.47836581]
[1744300943716,51.66871695,109.19,109.17,9.16]
[1744300944012,19.523,109.23,109.18,18.64964886]
[1744300944228,19.523,109.23,109.18,152.11836581]
[1744300944391,71.19171695,109.23,109.18,100.44964886]
[1744300944588,51.66871695,109.21,109.18,100.44964886]
[1744300944893,51.66871695,109.19,109.18,81.8]
[1744300945094,19.523,109.23,109.18,142.62781695]
[1744300945415,0.063,109.23,109.21,18.64964886]
[1744300946516,0.063,109.23,109.22,51.95304009]
[1744300947016,0.063,109.25,109.24,0.28432314]
[1744300947196,0.063,109.25,109.24,70.60268895]
[1744300947710,0.0001,109.26,109.25,18.64964886]
[1744300948015,0.063,109.28,109.26,0.28432314]
[1744300948322,0.063,109.28,109.25,100.44964886]
[1744300948488,51.73171695,109.28,109.25,100.44964886]
[1744300948692,0.063,109.28,109.25,152.11836581]
[1744300948910,0.063,109.28,109.24,0.28432314]
[1744300949092,0.063,109.28,109.26,51.66871695]
[1744300949294,0.063,109.28,109.27,70.31836581]
[1744300949687,0.063,109.28,109.27,18.64964886]
[1744300950116,0.063,109.28,109.26,51.66871695]
[1744300950291,0.063,109.28,109.27,70.60268895]
[1744300950629,0.063,109.29,109.28,18.933972]
[1744300950827,0.063,109.31,109.3,148.2714059]
[1744300950828,0.0001,109.31,109.3,148.2714059]
[1744300950991,0.063,109.37,109.31,18.933972]
[1744300951192,0.063,109.37,109.36,51.66871695]
[1744300951501,0.063,109.37,109.36,152.40268895]
[1744300951711,0.0001,109.37,109.36,152.40268895]
[1744300951912,0.063,109.39,109.37,18.933972]
[1744300952108,0.063,109.39,109.38,70.31836581]
[1744300952301,0.063,109.39,109.38,152.11836581]
[1744300952497,0.063,109.39,109.38,152.40268895]
[1744300953000,0.063,109.39,109.38,161.54508895]
[1744300953415,0.063,109.43,109.4,0.28432314]
[1744300953589,0.063,109.43,109.42,51.66871695]
[1744300953786,0.063,109.43,109.42,70.31836581]
[1744300953986,0.77875938,109.43,109.4,133.75304009]
[1744300954215,0.77875938,109.43,109.42,70.31836581]
[1744300954389,0.77875938,109.43,109.42,152.40268895]
[1744300954807,13.10083942,109.45,109.44,0.28432314]
[1744300955002,13.10083942,109.45,109.44,133.75304009]
[1744300955388,9.1316,109.51,109.45,18.64964886]
[1744300955587,22.8243,109.54,109.47,51.66871695]
[1744300955816,9.1299,109.53,109.45,100.44964886]
[1744300956029,9.1299,109.53,109.47,51.66871695]
[1744300956030,51.66871695,109.52,109.47,51.66871695]
[1744300956325,9.1293,109.54,109.48,51.66871695]
[1744300956507,373.48091695,109.55,109.49,51.66871695]
[1744300956508,321.8122,109.55,109.49,51.66871695]
[1744300956697,314.08,109.55,109.51,51.66871695]
[1744300956899,9.1249,109.59,109.53,51.66871695]
[1744300957199,16.921,109.6,109.53,0.28432314]
[1744300957402,68.58971695,109.6,109.53,0.28432314]
[1744300957601,51.66871695,109.57,109.53,133.46871695]
[1744300957993,51.66871695,109.57,109.53,81.8]
[1744300958194,51.66871695,109.54,109.53,81.8]
[1744300958393,26.0,109.57,109.5,51.66871695]
[1744300958614,26.0,109.57,109.48,18.933972]
[1744300958812,51.66871695,109.55,109.48,81.8]
[1744300959017,51.66871695,109.51,109.48,81.8]
[1744300959316,9.129,109.54,109.48,133.46871695]
[1744300959508,9.129,109.54,109.51,13.82043882]
[1744300959816,51.66871695,109.55,109.51,13.82043882]
[1744300959817,51.66871695,109.53,109.51,13.82043882]
[1744300960219,51.66871695,109.52,109.51,13.82043882]
[1744300960430,0.03,109.56,109.51,13.82043882]
[1744300960604,0.03,109.56,109.49,18.64964886]
[1744300960605,51.66871695,109.55,109.49,18.64964886]
[1744300960935,0.03,109.56,109.5,70.31836581]
[1744300961096,0.03,109.56,109.53,70.31836581]
[1744300961298,0.03,109.56,109.55,70.31836581]
[1744300961522,0.03,109.56,109.55,70.60268895]
[1744300962096,0.03,109.56,109.55,18.933972]
[1744300962526,0.03,109.56,109.53,51.95304009]
[1744300962824,0.03,109.56,109.54,18.64964886]
[1744300963021,0.03,109.56,109.52,51.66871695]
[1744300963205,0.03,109.56,109.55,18.64964886]
[1744300963400,0.03,109.56,109.55,70.31836581]
[1744300963626,0.03,109.56,109.55,18.64964886]
[1744300963828,0.03,109.56,109.53,0.14216157]
[1744300964130,0.03,109.56,109.53,70.46052738]
[1744300964498,0.03,109.56,109.55,18.64964886]
[1744300964696,51.66871695,109.58,109.53,51.81087852]
[1744300964900,9.1261,109.58,109.53,18.64964886]
[1744300965094,51.66871695,109.57,109.53,18.64964886]
[1744300965324,9.1261,109.58,109.53,18.64964886]
[1744300965529,9.1261,109.58,109.52,133.46871695]
[1744300965830,51.66871695,109.53,109.5,18.64964886]
[1744300966123,51.66871695,109.52,109.5,18.64964886]
[1744300966423,6.5507,109.57,109.5,70.31836581]
[1744300966598,51.66871695,109.56,109.52,51.66871695]
[1744300966797,51.66871695,109.56,109.53,18.64964886]
[1744300967005,15.6774,109.57,109.51,0.28432314]
[1744300967319,51.66871695,109.56,109.52,51.66871695]
[1744300967615,9.1263,109.58,109.51,81.34216157]
[1744300967819,9.1263,109.58,109.52,18.64964886]
[1744300968001,51.66871695,109.56,109.52,70.31836581]
[1744300968204,31.9316,109.61,109.54,70.31836581]
[1744300968623,51.66871695,109.57,109.52,81.34216157]
[1744300968802,51.66871695,109.56,109.53,18.64964886]
[1744300968999,51.66871695,109.56,109.51,133.01087852]
[1744300969198,9.1249,109.59,109.52,18.64964886]
[1744300969406,9.1249,109.59,109.53,18.933972]
[1744300969606,9.1249,109.59,109.53,18.64964886]
[1744300969827,51.66871695,109.56,109.53,18.64964886]
[1744300970024,9.1249,109.59,109.53,70.31836581]
[1744300970439,9.1249,109.59,109.53,0.28432314]
[1744300970637,9.1249,109.59,109.53,51.95304009]
[1744300970931,9.1249,109.59,109.54,18.64964886]
[1744300971142,51.66871695,109.57,109.54,18.64964886]
[1744300971547,51.66871695,109.55,109.49,18.64964886]
[1744300971715,51.66871695,109.53,109.49,152.61836581]
[1744300971913,26.0,109.56,109.49,152.61836581]
[1744300972135,26.0,109.56,109.47,18.64964886]
[1744300972136,51.66871695,109.51,109.47,18.64964886]
[1744300972337,51.66871695,109.51,109.47,152.61836581]
[1744300972551,51.66871695,109.52,109.47,152.61836581]
[1744300972729,57.89431695,109.55,109.47,100.94964886]
[1744300972923,51.66871695,109.52,109.48,18.933972]
[1744300973417,9.1298,109.54,109.48,18.933972]
[1744300973618,51.66871695,109.52,109.48,18.64964886]
[1744300973830,9.1298,109.54,109.48,18.64964886]
[1744300974018,51.66871695,109.5,109.48,18.64964886]
[1744300974218,51.66871695,109.51,109.47,82.3]
[1744300974438,9.124,109.6,109.5,103.3374339]
[1744300974628,9.124,109.6,109.53,51.66871695]
[1744300974829,51.66871695,109.59,109.54,51.66871695]
[1744300975035,9.1535,109.61,109.56,51.66871695]
[1744300975219,51.66871695,109.6,109.55,51.66871695]
[1744300975639,51.66871695,109.6,109.54,0.28432314]
[1744300976029,51.66871695,109.6,109.55,51.66871695]
[1744300976547,0.03,109.61,109.57,51.66871695]
[1744300977055,0.03,109.61,109.58,51.66871695]
[1744300977213,51.69871695,109.61,109.56,51.66871695]
[1744300977418,51.66871695,109.6,109.55,151.61836581]
[1744300978050,292.33628255,109.62,109.55,99.94964886]
[1744300978245,51.66871695,109.6,109.55,99.94964886]
[1744300978540,51.66871695,109.59,109.55,151.61836581]
[1744300978739,51.66871695,109.6,109.55,151.61836581]
[1744300978944,51.66871695,109.59,109.55,99.94964886]
[1744300979115,51.66871695,109.59,109.55,81.3]
[1744300979321,51.66871695,109.58,109.55,81.3]
[1744300979545,51.66871695,109.6,109.53,70.31836581]
[1744300979747,9.1232,109.61,109.54,51.66871695]
[1744300980051,0.03,109.62,109.57,51.66871695]
[1744300980241,0.03,109.62,109.58,51.66871695]
[1744300980745,51.66871695,109.61,109.56,0.28432314]
[1744300980949,0.03,109.62,109.57,51.66871695]
[1744300981137,0.03,109.62,109.55,81.3]
[1744300981138,51.66871695,109.58,109.55,81.3]
[1744300981444,103.3374339,109.56,109.47,81.3]
[1744300981670,7.7154,109.57,109.51,51.66871695]
[1744300981955,51.66871695,109.54,109.5,51.66871695]
[1744300982447,51.66871695,109.55,109.5,51.66871695]
[1744300982839,51.66871695,109.52,109.47,132.96871695]
[1744300983017,7.7154,109.57,109.49,51.66871695]
[1744300983224,51.66871695,109.55,109.48,18.64964886]
[1744300983520,51.66871695,109.5,109.47,81.3]
[1744300983728,51.66871695,109.49,109.46,0.063]
[1744300983939,26.0,109.52,109.46,51.73171695]
[1744300984252,51.66871695,109.49,109.46,0.063]
[1744300984652,51.66871695,109.47,109.42,0.063]
[1744300984815,77.66871695,109.43,109.42,0.063]
[1744300985222,86.80691695,109.43,109.42,0.063]
[1744300985967,109.65251695,109.43,109.4,0.063]
[1744300986175,57.9838,109.43,109.4,0.063]
[1744300986333,51.66871695,109.41,109.4,0.063]
[1744300986970,57.9838,109.43,109.4,0.063]
[1744300987171,60.80861695,109.41,109.4,0.063]
[1744300987342,112.4773339,109.41,109.4,0.063]
[1744300987550,60.80861695,109.41,109.4,0.063]
[1744300987846,112.4773339,109.41,109.4,0.063]
[1744300988958,26.0,109.38,109.32,51.66871695]
[1744300989182,35.1427,109.38,109.32,51.66871695]
[1744300989351,35.1427,109.38,109.31,0.063]
[1744300989352,51.66871695,109.34,109.31,0.063]
[1744300989664,51.66871695,109.33,109.31,0.063]
[1744300989834,51.66871695,109.35,109.31,0.063]
[1744300989835,51.66871695,109.32,109.31,0.063]
[1744300990239,51.66871695,109.36,109.31,51.73171695]
[1744300990456,51.66871695,109.35,109.31,51.73171695]
[1744300990662,51.66871695,109.35,109.31,0.063]
[1744300991066,26.0,109.39,109.34,51.66871695]
[1744300991243,51.66871695,109.38,109.33,70.31836581]
[1744300991454,51.66871695,109.38,109.32,0.28432314]
[1744300991668,9.1402,109.41,109.36,51.66871695]
[1744300991851,51.66871695,109.4,109.35,51.66871695]
[1744300992163,51.66871695,109.41,109.36,51.66871695]
[1744300992383,313.5,109.42,109.38,51.66871695]
[1744300992551,313.5,109.42,109.36,0.28432314]
[1744300993061,51.66871695,109.41,109.37,18.64964886]
[1744300993369,313.5,109.42,109.38,51.66871695]
[1744300993551,313.5,109.42,109.36,18.933972]
[1744300993744,313.5,109.42,109.38,51.66871695]
[1744300993945,313.5,109.42,109.36,18.933972]
[1744300994144,365.16871695,109.42,109.38,51.66871695]
[1744300994456,365.16871695,109.42,109.36,18.933972]
[1744300994457,374.30791695,109.42,109.37,51.66871695]
[1744300994655,51.66871695,109.41,109.36,18.64964886]
[1744300994858,51.66871695,109.38,109.35,18.64964886]
[1744300995060,313.5,109.42,109.36,51.66871695]
[1744300995367,365.16871695,109.42,109.38,51.66871695]
[1744300995565,313.5,109.42,109.38,51.66871695]
[1744300995772,365.16871695,109.42,109.37,70.31836581]
[1744300995975,365.16871695,109.42,109.34,18.64964886]
[1744300995976,51.66871695,109.39,109.34,18.64964886]
[1744300996146,322.6392,109.42,109.36,51.66871695]
[1744300996346,51.66871695,109.41,109.35,151.31836581]
[1744300996654,51.66871695,109.4,109.35,81.0]
[1744300996860,322.6392,109.42,109.36,51.66871695]
[1744300997058,313.5,109.42,109.38,51.66871695]
[1744300997276,313.5,109.42,109.36,18.64964886]
[1744300997277,313.5,109.42,109.39,51.66871695]
[1744300997569,313.5,109.42,109.38,18.64964886]
[1744300997772,6.3022,109.46,109.41,51.66871695]
[1744300998068,51.66871695,109.45,109.39,18.933972]
[1744300998270,6.3022,109.46,109.42,51.66871695]
[1744300998571,51.66871695,109.46,109.42,51.66871695]
[1744300999060,51.66871695,109.47,109.42,51.66871695]
[1744300999255,60.80371695,109.47,109.39,28.075272]
[1744300999460,9.135,109.47,109.42,51.66871695]
[1744300999658,60.80371695,109.47,109.42,51.66871695]
[1744300999860,51.66871695,109.45,109.41,51.66871695]
[1744301000159,51.66871695,109.45,109.4,18.64964886]
[1744301000361,9.135,109.47,109.42,51.66871695]
[1744301000563,60.80271695,109.48,109.44,51.66871695]
[1744301000761,9.134,109.48,109.43,51.66871695]
[1744301001079,57.89771695,109.5,109.46,51.66871695]
[1744301001284,51.66871695,109.49,109.44,18.64964886]
[1744301001567,51.66871695,109.49,109.43,81.0]
[1744301001568,15.3617,109.5,109.43,81.0]
[1744301001768,51.66871695,109.47,109.43,0.94481695]
[1744301001977,0.5,109.37,109.25,27.68598489]
[1744301002179,51.66871695,109.35,109.25,27.68598489]
[1744301002347,51.66871695,109.29,109.25,27.68598489]
[1744301002555,51.66871695,109.35,109.25,27.68598489]
[1744301002855,51.66871695,109.31,109.25,27.68598489]
[1744301003054,51.66871695,109.3,109.25,79.35470184]
[1744301003285,51.66871695,109.32,109.27,70.31836581]
[1744301003449,51.66871695,109.33,109.29,18.64964886]
[1744301003850,51.66871695,109.31,109.28,13.81149244]
[1744301004050,9.1449,109.35,109.29,18.64964886]
[1744301004355,51.66871695,109.32,109.29,18.64964886]
[1744301004564,51.66871695,109.3,109.28,13.81149244]
[1744301004962,51.66871695,109.29,109.28,13.81149244]
[1744301005875,60.81861695,109.29,109.28,13.81149244]
[1744301006074,51.66871695,109.29,109.26,0.03]
[1744301006386,51.66871695,109.27,109.26,0.03]
[1744301007785,112.4890339,109.27,109.26,0.03]
[1744301008280,51.66871695,109.27,109.26,0.03]
[1744301010276,60.82031695,109.27,109.26,0.03]
[1744301010479,112.4890339,109.27,109.26,0.03]
[1744301011090,60.82031695,109.27,109.26,0.03]
[1744301011380,51.66871695,109.27,109.26,0.03]
[1744301012272,9.1474,109.32,109.26,0.03]
[1744301012472,51.66871695,109.31,109.27,18.64964886]
[1744301012679,9.1457,109.34,109.29,18.64964886]
[1744301012980,51.66871695,109.4,109.34,18.64964886]
[1744301013177,30.0,109.35,109.34,18.64964886]
[1744301013355,51.66871695,109.36,109.32,0.28432314]
[1744301013556,51.66871695,109.33,109.28,26.28432314]
[1744301013782,51.66871695,109.32,109.29,18.64964886]
[1744301014086,51.66871695,109.32,109.28,18.933972]
[1744301014387,51.66871695,109.32,109.26,0.97481695]
[1744301014388,51.66871695,109.34,109.31,18.64964886]
[1744301014677,120.22631695,109.4,109.31,18.64964886]
[1744301014678,9.1416,109.39,109.34,18.64964886]
[1744301014883,9.1416,109.39,109.32,0.28432314]
[1744301015388,51.66871695,109.36,109.33,18.64964886]
[1744301015688,51.66871695,109.37,109.33,18.64964886]
[1744301015980,51.66871695,109.34,109.31,18.64964886]
[1744301016180,51.66871695,109.33,109.31,18.64964886]
[1744301016686,51.66871695,109.35,109.32,18.64964886]
[1744301016980,51.66871695,109.34,109.32,18.64964886]
[1744301017183,51.66871695,109.34,109.3,0.14216157]
[1744301017184,51.66871695,109.33,109.3,0.14216157]
[1744301017362,51.66871695,109.31,109.27,18.64964886]
[1744301017563,9.1457,109.34,109.29,18.64964886]
[1744301017989,9.1457,109.34,109.29,0.14216157]
[1744301018290,9.1457,109.34,109.29,18.79181043]
[1744301018291,51.66871695,109.32,109.29,18.79181043]
[1744301018491,51.66871695,109.31,109.29,0.14216157]
[1744301018786,9.1457,109.34,109.27,70.31836581]
[1744301018787,9.1457,109.34,109.28,0.28432314]
[1744301019088,51.66871695,109.33,109.29,18.64964886]
[1744301019393,9.1457,109.34,109.27,19.59446581]
[1744301019394,51.66871695,109.3,109.27,0.94481695]
[1744301019693,9.1457,109.34,109.27,0.94481695]
[1744301019898,51.66871695,109.28,109.27,0.94481695]
[1744301020093,51.66871695,109.28,109.26,0.03]
[1744301020271,51.66871695,109.27,109.26,0.03]
[1744301020587,22.8665,109.33,109.26,0.03]
[1744301020786,51.66871695,109.3,109.26,0.03]
[1744301020993,51.66871695,109.27,109.26,0.03]
[1744301021584,9.1499,109.29,109.26,0.03]
[1744301022267,60.81861695,109.29,109.26,0.03]
[1744301022589,9.1499,109.29,109.26,0.03]
[1744301022796,51.66871695,109.27,109.26,0.03]
[1744301022991,9.1499,109.29,109.26,0.03]
[1744301023194,51.66871695,109.27,109.26,0.03]
[1744301023770,60.82031695,109.27,109.26,0.03]
[1744301025201,51.66871695,109.27,109.26,0.03]
[1744301025582,51.66871695,109.28,109.26,0.03]
[1744301025781,9.1474,109.32,109.26,0.03]
[1744301026013,51.66871695,109.3,109.26,18.67964886]
[1744301026214,51.66871695,109.29,109.26,18.67964886]
[1744301026413,9.1474,109.32,109.27,0.28432314]
[1744301026744,51.66871695,109.3,109.27,0.28432314]
[1744301027003,51.66871695,109.28,109.26,18.67964886]
[1744301027168,32.016,109.32,109.26,0.03]
[1744301027169,51.66871695,109.3,109.26,0.03]
[1744301027370,9.1474,109.32,109.26,18.67964886]
[1744301027897,32.0101,109.34,109.26,18.67964886]
[1744301028079,51.66871695,109.3,109.26,18.67964886]
[1744301028400,32.0101,109.34,109.26,18.67964886]
[1744301028598,51.66871695,109.29,109.26,18.67964886]
[1744301028804,51.66871695,109.27,109.26,0.03]
[1744301029095,77.739,109.34,109.26,18.67964886]
[1744301029096,32.0101,109.34,109.26,18.67964886]
[1744301029301,32.0101,109.34,109.27,0.28432314]
[1744301029471,32.0101,109.34,109.26,0.97481695]
[1744301029666,51.66871695,109.29,109.26,0.97481695]
[1744301029868,32.0101,109.34,109.27,18.64964886]
[1744301029869,9.149,109.31,109.27,18.64964886]
[1744301030071,51.66871695,109.29,109.27,18.64964886]
[1744301030500,51.66871695,109.28,109.26,0.97481695]
[1744301030701,51.66871695,109.3,109.26,0.03]
[1744301030903,51.66871695,109.28,109.26,0.03]
[1744301031108,51.66871695,109.27,109.26,0.03]
[1744301031488,51.66871695,109.28,109.26,0.03]
[1744301032107,9.1474,109.32,109.26,0.03]
[1744301032327,51.66871695,109.28,109.26,0.03]
[1744301032488,51.66871695,109.27,109.26,0.03]
[1744301033195,51.66871695,109.3,109.26,0.03]
[1744301033498,51.66871695,109.27,109.26,0.03]
[1744301033903,51.66871695,109.28,109.26,0.03]
[1744301034292,51.66871695,109.29,109.26,0.03]
[1744301034510,9.1484,109.31,109.26,18.67964886]
[1744301034810,51.66871695,109.31,109.27,0.28432314]
[1744301034983,0.35787969,109.34,109.32,0.28432314]
[1744301035190,52.02659664,109.34,109.32,0.28432314]
[1744301035402,0.35787969,109.34,109.32,71.5475059]
[1744301036416,0.35787969,109.34,109.32,19.87878895]
[1744301036989,0.35787969,109.34,109.32,71.5475059]
[1744301037292,0.35787969,109.34,109.32,19.87878895]
[1744301037601,0.35787969,109.34,109.33,18.933972]
[1744301037906,0.35787969,109.34,109.32,0.94481695]
[1744301038105,51.66871695,109.33,109.32,0.94481695]
[1744301038516,52.02659664,109.34,109.32,0.94481695]
[1744301038887,0.35787969,109.34,109.33,18.64964886]
[1744301039306,52.02659664,109.34,109.33,18.64964886]
[1744301039496,61.17239664,109.34,109.32,0.94481695]
[1744301039699,51.66871695,109.33,109.32,0.94481695]
[1744301040118,52.02659664,109.34,109.32,0.94481695]
[1744301040323,0.35787969,109.34,109.33,18.64964886]
[1744301040618,0.35787969,109.34,109.33,18.933972]
[1744301040802,0.35787969,109.34,109.33,19.87878895]
[1744301041622,0.35787969,109.34,109.33,71.5475059]
[1744301041991,0.063,109.36,109.34,0.28432314]
[1744301042213,0.063,109.36,109.35,70.60268895]
[1744301042408,0.063,109.36,109.35,19.87878895]
[1744301042611,0.063,109.39,109.35,132.36112285]
[1744301042923,0.063,109.42,109.38,96.60268895]
[1744301043099,0.063,109.42,109.41,51.66871695]
[1744301043298,0.063,109.42,109.41,19.87878895]
[1744301043628,51.73171695,109.42,109.41,19.59446581]
[1744301043913,51.73171695,109.42,109.38,0.28432314]
[1744301044118,0.063,109.42,109.38,0.28432314]
[1744301044417,9.2021,109.42,109.37,19.59446581]
[1744301044626,51.66871695,109.39,109.37,19.59446581]
[1744301044921,51.66871695,109.38,109.34,18.64964886]
[1744301045088,51.66871695,109.37,109.34,19.59446581]
[1744301045420,51.66871695,109.37,109.35,0.28432314]
[1744301045627,51.66871695,109.38,109.34,71.26318276]
[1744301046096,0.063,109.42,109.37,0.28432314]
[1744301046296,51.66871695,109.38,109.37,1.22914009]
[1744301046513,51.66871695,109.4,109.37,1.22914009]
[1744301046722,9.2024,109.42,109.37,1.22914009]
[1744301046931,51.66871695,109.39,109.37,1.22914009]
[1744301047116,51.66871695,109.4,109.37,1.22914009]
[1744301047426,51.66871695,109.39,109.34,18.64964886]
[1744301047595,51.66871695,109.41,109.37,18.64964886]
[1744301048015,0.063,109.42,109.38,0.28432314]
[1744301048197,0.063,109.42,109.38,71.5475059]
[1744301048198,51.73171695,109.42,109.38,71.5475059]
[1744301048524,51.66871695,109.41,109.38,19.87878895]
[1744301048707,0.063,109.42,109.35,18.79181043]
[1744301048708,51.66871695,109.39,109.35,18.79181043]
[1744301048903,51.66871695,109.38,109.35,18.79181043]
[1744301049109,51.66871695,109.39,109.36,0.14216157]
[1744301049426,51.66871695,109.38,109.35,19.73662738]
[1744301049724,51.66871695,109.39,109.36,0.14216157]
[1744301049911,9.2022,109.42,109.36,0.14216157]
[1744301050117,51.66871695,109.39,109.36,0.14216157]
[1744301050307,51.66871695,109.37,109.33,18.64964886]
[1744301050508,26.0,109.41,109.35,18.64964886]
[1744301050735,51.66871695,109.39,109.36,0.28432314]
[1744301050902,0.063,109.42,109.38,51.95304009]
[1744301051094,0.063,109.42,109.41,70.60268895]
[1744301051321,0.063,109.42,109.41,19.87878895]
[1744301051998,0.063,109.42,109.41,71.5475059]
[1744301052197,0.063,109.43,109.42,0.28432314]
[1744301052423,51.66871695,109.49,109.42,71.5475059]
[1744301052724,60.83161695,109.5,109.45,18.64964886]
[1744301053030,51.69871695,109.5,109.44,28.071172]
[1744301053210,51.69871695,109.5,109.44,79.73988895]
[1744301053211,51.66871695,109.48,109.44,79.73988895]
[1744301053413,0.20893984,109.5,109.46,18.933972]
[1744301053628,51.87765679,109.5,109.46,18.933972]
[1744301053827,0.20893984,109.5,109.49,18.64964886]
[1744301054239,0.20893984,109.5,109.49,18.933972]
[1744301054531,0.20893984,109.5,109.49,70.60268895]
[1744301055023,0.20893984,109.5,109.49,79.73588895]
[1744301055233,0.20893984,109.5,109.49,80.6807059]
[1744301055606,0.20893984,109.5,109.49,19.87878895]
[1744301056098,0.20893984,109.5,109.49,29.01198895]
[1744301056298,0.20893984,109.5,109.49,80.6807059]
[1744301057505,0.20893984,109.5,109.49,132.84942285]
[1744301057701,0.063,109.51,109.5,122.2714059]
[1744301058706,0.063,109.51,109.5,131.4038059]
[1744301058925,0.063,109.51,109.5,151.0038059]
[1744301059117,0.03,109.55,109.54,70.60268895]
[1744301059317,0.03,109.55,109.54,71.5475059]
[1744301059821,0.03,109.55,109.54,19.87878895]
[1744301060224,0.03,109.55,109.54,71.5475059]
[1744301061039,0.03,109.55,109.54,80.6765059]
[1744301062535,0.03,109.61,109.57,26.0]
[1744301062727,0.03,109.61,109.6,18.933972]
[1744301063109,0.03,109.61,109.6,70.60268895]
[1744301063628,0.03,109.61,109.59,18.933972]
[1744301063836,0.03,109.61,109.59,70.60268895]
[1744301064133,0.03,109.61,109.6,70.60268895]
[1744301064342,0.03,109.61,109.6,71.5475059]
[1744301064841,0.03,109.61,109.6,132.34022285]
[1744301065045,0.063,109.63,109.61,19.87878895]
[1744301065335,0.063,109.63,109.62,70.60268895]
[1744301065715,0.063,109.63,109.62,19.87878895]
[1744301065908,0.063,109.63,109.6,51.66871695]
[1744301066109,0.063,109.63,109.6,18.79181043]
[1744301066310,0.063,109.63,109.6,70.46052738]
[1744301067246,0.063,109.63,109.59,51.66871695]
[1744301067538,51.66871695,109.62,109.59,18.64964886]
[1744301067836,0.063,109.63,109.59,18.64964886]
[1744301068217,0.063,109.63,109.62,51.66871695]
[1744301068517,51.73171695,109.63,109.6,0.28432314]
[1744301068718,51.66871695,109.62,109.6,18.933972]
[1744301068917,51.66871695,109.62,109.59,0.94481695]
[1744301069131,51.66871695,109.61,109.58,18.64964886]
[1744301069641,0.15246992,109.63,109.58,0.28432314]
[1744301069933,51.82118687,109.63,109.58,0.28432314]
[1744301070143,9.27416992,109.63,109.59,18.64964886]
[1744301070341,0.15246992,109.63,109.6,0.14216157]
[1744301070509,0.15246992,109.63,109.6,18.64964886]
[1744301070843,51.66871695,109.61,109.54,0.94481695]
[1744301071045,51.66871695,109.61,109.57,18.64964886]
[1744301071346,51.66871695,109.6,109.57,18.64964886]
[1744301071542,0.15246992,109.63,109.58,0.28432314]
[1744301071842,9.27406992,109.63,109.55,0.94481695]
[1744301072020,51.66871695,109.57,109.56,0.14216157]
[1744301072215,51.66871695,109.57,109.56,0.28432314]
[1744301072547,51.66871695,109.6,109.56,18.64964886]
[1744301072734,9.1234,109.61,109.55,18.64964886]
[1744301072936,51.66871695,109.6,109.55,18.64964886]
[1744301073113,51.66871695,109.57,109.55,18.64964886]
[1744301073741,51.66871695,109.56,109.51,61.73019034]
[1744301073929,51.66871695,109.55,109.52,18.64964886]
[1744301074123,51.66871695,109.56,109.52,18.64964886]
[1744301074317,51.66871695,109.55,109.52,18.64964886]
[1744301074514,51.66871695,109.53,109.52,18.64964886]
[1744301074818,60.79891695,109.53,109.47,0.94481695]